bitfinex/quotes_ETHUSD_20240716
["timestamp","ask_amount","ask_price","bid_price","bid_amount"]
[1721156777977,3.54349546,3468.2,3465.9,2.88523]
[1721156777978,3.54349546,3468.2,3467.0,2.88429]
[1721156778185,3.54349546,3468.2,3466.9,2.88441]
[1721156778186,2.88359,3467.9,3466.9,2.88441]
[1721156778513,2.88375,3467.7,3467.0,2.88433]
[1721156778802,2.88375,3467.7,3466.7,2.88457]
[1721156778803,2.88375,3467.7,3466.8,2.88445]
[1721156779005,2.88375,3467.7,3466.9,2.88434]
[1721156779505,0.54349546,3468.2,3466.8,0.67033274]
[1721156779506,2.88384,3467.6,3466.8,0.67033274]
[1721156779667,2.88393,3467.5,3466.8,2.88449]
[1721156780262,2.88393,3467.5,3466.6,2.88466]
[1721156780766,2.88409,3467.3,3466.5,2.88474]
[1721156781288,2.88393,3467.5,3466.2,2.4531]
[1721156781492,2.4263,3467.6,3466.7,2.88458]
[1721156781493,2.88401,3467.4,3466.7,2.88458]
[1721156781677,2.88376,3467.7,3466.8,2.88446]
[1721156781865,5.88386,3467.6,3466.8,2.88446]
[1721156782067,5.88386,3467.6,3466.7,2.88458]
[1721156782068,3.0,3467.6,3466.9,2.88439]
[1721156782410,2.3203,3468.0,3466.9,2.88439]
[1721156782411,5.88376,3467.7,3467.0,2.88432]
[1721156782700,6.459946,3467.7,3467.0,2.88432]
[1721156782888,6.459946,3467.7,3466.9,2.88442]
[1721156783091,6.459946,3467.7,3467.0,2.88432]
[1721156783469,6.459946,3467.7,3466.7,2.88456]
[1721156783672,6.459946,3467.7,3467.0,2.88433]
[1721156784005,0.69378474,3467.6,3467.0,2.88433]
[1721156784168,3.0,3467.8,3467.0,2.88433]
[1721156784571,5.88369,3467.8,3467.0,2.88433]
[1721156785206,5.88369,3467.8,3466.9,2.8844]
[1721156785207,2.88377,3467.7,3466.9,2.8844]
[1721156785383,2.88377,3467.7,3466.8,2.88447]
[1721156785384,3.0,3467.6,3466.8,2.88447]
[1721156785979,3.0,3467.6,3467.0,2.88428]
[1721156786484,3.0,3467.8,3467.0,2.88428]
[1721156786679,2.88301,3468.6,3467.5,2.88392]
[1721156786680,2.442,3468.6,3467.5,2.88392]
[1721156786892,5.32505,3468.6,3467.7,2.8837]
[1721156787093,2.88309,3468.5,3467.7,2.8837]
[1721156787297,2.88273,3469.0,3467.5,2.88392]
[1721156787613,2.442,3469.2,3468.1,2.88338]
[1721156787907,0.35813969,3470.4,3467.9,2.3239]
[1721156787908,2.442,3469.7,3468.5,2.88307]
[1721156788298,2.442,3469.7,3468.7,2.88288]
[1721156788299,2.88235,3469.4,3468.7,2.88288]
[1721156789005,2.88251,3469.2,3468.3,2.88325]
[1721156789205,2.88251,3469.2,3468.4,2.88317]
[1721156789443,3.458996,3469.2,3468.2,2.88333]
[1721156789631,3.458996,3469.2,3468.5,2.88308]
[1721156789911,3.0,3469.1,3468.5,2.88308]
[1721156790313,3.0,3469.3,3468.5,2.88308]
[1721156790721,5.88245,3469.3,3468.5,2.88308]
[1721156791004,6.75893,3469.3,3468.5,2.88308]
[1721156791214,2.442,3469.7,3468.7,2.88284]
[1721156791518,2.8817,3470.2,3469.0,2.88266]
[1721156791686,2.88197,3469.9,3469.0,2.88266]
[1721156792025,0.288197,3469.8,3469.0,2.88266]
[1721156792710,2.88214,3469.7,3469.0,2.88266]
[1721156793495,2.88219,3469.6,3468.8,2.88281]
[1721156793692,3.288197,3469.8,3468.2,2.2696]
[1721156793892,2.88247,3469.3,3468.2,2.2696]
[1721156794086,2.88247,3469.3,3468.3,0.22696]
[1721156794493,2.88247,3469.3,3468.6,2.883]
[1721156794688,2.88228,3469.5,3468.6,2.883]
[1721156795123,2.88234,3469.4,3468.6,2.883]
[1721156795325,2.88246,3469.3,3468.6,2.883]
[1721156796529,3.1993277,3469.5,3468.6,2.883]
[1721156796711,3.1993277,3469.5,3468.7,2.88291]
[1721156797115,2.88234,3469.4,3468.7,2.88291]
[1721156797419,2.88244,3469.3,3468.6,2.88295]
[1721156797629,3.1993277,3469.5,3468.7,2.88291]
[1721156797944,2.88209,3469.7,3468.9,2.88269]
[1721156798096,3.170207,3469.8,3469.1,2.88258]
[1721156798497,2.88209,3469.7,3469.1,2.88258]
[1721156798999,2.88187,3470.0,3469.2,2.88243]
[1721156799403,3.0,3469.9,3468.7,2.88285]
[1721156799624,3.0,3469.9,3469.4,2.88234]
[1721156799934,2.88176,3470.1,3469.4,2.88234]
[1721156799935,5.88176,3470.1,3469.4,2.88234]
[1721156800135,3.0,3470.1,3469.4,2.88234]
[1721156801625,3.0,3470.1,3469.5,2.88224]
[1721156802026,2.88136,3470.6,3469.8,2.88199]
[1721156802878,2.88112,3470.9,3469.8,2.88199]
[1721156802879,2.88112,3470.9,3470.0,2.88182]
[1721156803025,3.707106,3470.9,3470.0,2.88182]
[1721156803226,3.707106,3470.9,3469.4,2.50563506]
[1721156803227,0.825986,3470.9,3469.6,2.3387]
[1721156803437,0.825986,3470.9,3470.2,2.88162]
[1721156804238,0.825986,3470.9,3470.3,2.88157]
[1721156804462,5.88094,3471.1,3470.3,2.88157]
[1721156804679,3.0,3471.1,3470.4,2.8815]
[1721156804894,2.88079,3471.3,3470.4,2.8815]
[1721156805192,5.35392,3471.5,3470.6,2.88133]
[1721156805193,2.88062,3471.5,3470.6,2.88133]
[1721156805392,0.1507847,3471.9,3470.8,2.88117]
[1721156805393,3.0311147,3471.9,3470.8,2.88117]
[1721156805596,2.88035,3471.8,3471.0,2.881]
[1721156805880,2.88043,3471.7,3470.9,2.88108]
[1721156806084,2.88052,3471.6,3470.9,2.88108]
[1721156806897,2.88052,3471.6,3470.4,2.3387]
[1721156807198,2.88052,3471.6,3468.1,1.20106064]
[1721156807199,2.88101,3471.0,3470.1,2.88169]
[1721156807359,2.88101,3471.0,3470.2,2.88167]
[1721156807551,2.88101,3471.0,3470.3,2.88157]
[1721156808249,2.88101,3471.0,3470.0,2.88182]
[1721156808576,2.88128,3470.7,3469.8,2.882]
[1721156808766,2.88128,3470.7,3469.3,4.7361]
[1721156808767,2.88151,3470.4,3469.4,2.88231]
[1721156808968,0.288128,3470.7,3469.3,2.2881]
[1721156808969,0.288128,3470.7,3470.0,2.88178]
[1721156809578,6.169398,3470.7,3470.0,2.88178]
[1721156810949,3.288128,3470.7,3470.0,2.88178]
[1721156811149,0.288128,3470.7,3470.0,2.88178]
[1721156811377,3.0,3470.8,3470.2,2.8816]
[1721156811683,5.88101,3471.0,3470.3,2.88157]
[1721156812375,5.88101,3471.0,3470.4,2.88149]
[1721156812376,3.0,3471.0,3470.4,2.88149]
[1721156812681,3.0,3471.2,3470.4,2.88149]
[1721156812985,5.88084,3471.2,3470.4,2.88149]
[1721156813153,6.756993,3471.2,3470.4,2.88149]
[1721156813489,6.756993,3471.2,3470.1,2.3361]
[1721156813490,2.8805,3471.7,3470.8,2.88112]
[1721156813689,3.0310447,3471.9,3471.1,2.88092]
[1721156814292,3.0310447,3471.9,3471.2,2.88083]
[1721156814610,3.0310547,3471.9,3471.2,2.88083]
[1721156815899,3.0,3471.8,3471.2,2.88083]
[1721156816217,3.0,3471.8,3471.2,3.694284]
[1721156816375,0.1507847,3471.9,3471.2,3.694284]
[1721156816716,0.1507847,3471.9,3471.4,2.88062]
[1721156818219,0.1507847,3471.9,3471.2,3.694284]
[1721156818375,0.1507847,3471.9,3471.2,2.88083]
[1721156818576,0.1507847,3471.9,3470.8,2.88116]
[1721156818799,2.88037,3471.8,3471.0,2.881]
[1721156818989,2.88061,3471.5,3470.6,2.88127]
[1721156819198,2.88061,3471.5,3470.5,2.3879]
[1721156819506,2.88076,3471.3,3470.4,2.88148]
[1721156819721,2.88076,3471.3,3470.5,2.88141]
[1721156819885,2.88085,3471.2,3470.4,2.88151]
[1721156820097,2.88085,3471.2,3470.4,2.88145]
[1721156820418,2.88101,3471.0,3470.2,2.88164]
[1721156820571,2.88101,3471.0,3470.3,2.88157]
[1721156820772,5.76176,3471.2,3470.3,2.88157]
[1721156820976,3.468771,3471.4,3470.5,2.8814]
[1721156821336,3.0,3471.3,3470.4,2.88146]
[1721156821478,2.8809,3471.2,3470.4,2.88146]
[1721156821679,5.88077,3471.3,3470.6,2.88134]
[1721156822118,2.88085,3471.2,3470.6,2.88134]
[1721156822323,2.88085,3471.2,3470.4,2.88145]
[1721156822808,2.88085,3471.2,3470.5,2.8814]
[1721156824986,2.88094,3471.1,3470.5,2.8814]
[1721156825316,2.88094,3471.1,3470.0,2.3879]
[1721156825317,2.88103,3471.0,3470.1,2.88172]
[1721156825538,2.88103,3471.0,3470.2,2.88166]
[1721156826086,2.8811,3470.9,3470.2,2.88166]
[1721156826883,2.88103,3471.0,3470.3,2.88159]
[1721156827290,2.88087,3471.2,3470.3,3.696711]
[1721156827490,2.88087,3471.2,3470.5,2.88141]
[1721156829426,5.88077,3471.3,3470.6,2.88134]
[1721156829641,5.88077,3471.3,3470.5,2.88142]
[1721156829642,2.88093,3471.1,3470.5,2.88142]
[1721156830306,2.88093,3471.1,3470.3,3.696641]
[1721156830507,5.88077,3471.3,3470.0,5.26967]
[1721156830508,3.0,3471.3,3470.1,2.88169]
[1721156830854,2.88118,3470.8,3470.2,2.88165]
[1721156831555,2.88118,3470.8,3470.0,2.88177]
[1721156831711,2.88118,3470.8,3470.1,2.88175]
[1721156832215,2.88118,3470.8,3469.9,2.88185]
[1721156832216,2.88128,3470.7,3469.9,2.88185]
[1721156832534,2.88118,3470.8,3469.7,5.35934]
[1721156832535,2.88143,3470.5,3469.7,5.35934]
[1721156832854,2.88143,3470.5,3469.9,2.8819]
[1721156833017,2.88143,3470.5,3469.8,0.535934]
[1721156833223,2.88143,3470.5,3469.7,5.35934]
[1721156833224,5.76293,3470.5,3469.7,5.35934]
[1721156833635,2.88143,3470.5,3469.8,2.882]
[1721156834135,2.88143,3470.5,3469.5,2.88224]
[1721156834342,2.88162,3470.3,3469.5,2.88224]
[1721156834524,2.88168,3470.2,3469.5,2.88224]
[1721156834770,2.88168,3470.2,3469.5,6.576043]
[1721156835098,2.88168,3470.2,3469.5,0.811613]
[1721156835304,2.88168,3470.2,3469.5,3.693853]
[1721156835858,2.88176,3470.1,3469.5,3.693853]
[1721156836671,2.88186,3470.0,3469.3,2.3515]
[1721156836894,2.88186,3470.0,3469.2,2.8825]
[1721156837190,2.88192,3469.9,3469.2,2.8825]
[1721156838305,2.88192,3469.9,3469.2,5.76496]
[1721156838473,2.88192,3469.9,3469.3,2.88242]
[1721156839422,2.88192,3469.9,3469.0,2.88264]
[1721156839423,1.50257021,3470.4,3469.6,2.88217]
[1721156839621,2.48,3470.7,3469.6,2.88217]
[1721156839622,4.50257021,3470.6,3469.6,2.88217]
[1721156839759,2.88157,3470.4,3469.6,2.88217]
[1721156839956,5.8816,3470.3,3469.6,2.88217]
[1721156840404,3.0,3470.3,3469.6,2.88217]
[1721156840696,2.88138,3470.6,3469.6,3.4874322]
[1721156840697,2.88152,3470.4,3469.6,3.4874322]
[1721156841010,3.0,3470.3,3469.6,3.4873922]
[1721156841165,2.88165,3470.3,3469.5,2.88221]
[1721156841563,3.0,3470.2,3469.5,2.88221]
[1721156842475,3.0,3470.2,3469.5,5.76442]
[1721156842680,3.0,3470.2,3469.5,2.88221]
[1721156842980,3.0,3470.2,3469.8,2.88193]
[1721156843318,3.0,3470.2,3469.6,2.4982]
[1721156843319,4.68509634,3470.8,3469.6,2.4982]
[1721156843320,1.50323861,3470.5,3469.6,2.4982]
[1721156843465,2.88101,3471.0,3469.5,0.288221]
[1721156843466,1.50323861,3471.0,3470.5,2.4982]
[1721156843665,5.24933,3471.6,3470.5,2.4982]
[1721156843666,1.50323861,3471.4,3470.6,2.88133]
[1721156843967,2.88036,3471.8,3470.6,2.88133]
[1721156843968,1.50323861,3471.5,3470.9,2.88109]
[1721156844163,4.68424634,3471.8,3470.9,2.88109]
[1721156844164,1.50323861,3471.6,3471.0,0.29387094]
[1721156844508,1.50323861,3471.5,3471.0,3.17488094]
[1721156844678,1.50323861,3471.5,3471.1,2.88093]
[1721156845207,2.88057,3471.6,3470.5,2.4982]
[1721156845415,1.50421565,3471.3,3470.6,2.88127]
[1721156845564,4.38507565,3471.2,3470.4,2.88151]
[1721156845765,1.50421565,3471.1,3470.5,2.8814]
[1721156845970,4.38507565,3471.2,3470.5,0.576291]
[1721156846192,1.50421565,3471.1,3470.5,0.576291]
[1721156846529,1.50421565,3471.1,3470.8,2.88116]
[1721156847304,1.50421565,3471.2,3470.8,2.88116]
[1721156848425,1.50417892,3471.2,3470.8,2.88116]
[1721156850205,1.50417892,3471.2,3470.8,0.6338791]
[1721156850529,1.50417892,3471.4,3471.1,2.88087]
[1721156850888,1.50417892,3471.5,3471.1,2.88087]
[1721156851095,1.50417892,3471.6,3471.1,2.88087]
[1721156851290,1.50417892,3471.5,3471.1,2.88087]
[1721156851520,7.68537471,3471.8,3471.1,2.88087]
[1721156851521,5.88036,3471.8,3471.1,2.88087]
[1721156851717,1.50443813,3471.6,3471.1,2.88087]
[1721156852096,1.50443813,3471.5,3471.1,2.88087]
[1721156852421,5.88038,3471.8,3471.1,2.88087]
[1721156852798,5.88038,3471.8,3470.9,2.88106]
[1721156852799,1.50392121,3471.5,3471.0,2.88101]
[1721156853534,1.50392121,3471.5,3470.7,2.88125]
[1721156853535,1.50392121,3471.3,3470.7,2.88125]
[1721156853698,1.50392121,3471.2,3470.7,2.88125]
[1721156854197,1.50392121,3471.2,3470.8,2.88117]
[1721156854700,2.88068,3471.4,3470.8,2.88117]
[1721156854921,1.5035619,3471.2,3470.8,2.88117]
[1721156855504,1.5035619,3471.2,3470.6,2.88133]
[1721156855829,1.5035619,3471.2,3470.6,2.88128]
[1721156856011,1.5035619,3471.2,3470.7,0.288128]
[1721156856610,1.5035619,3471.2,3470.7,3.169388]
[1721156856838,1.5035619,3471.2,3470.7,2.88126]
[1721156857926,2.88068,3471.4,3470.7,5.76245]
[1721156858114,1.5038847,3471.2,3470.7,2.88119]
[1721156858536,1.5038847,3471.2,3470.9,2.88109]
[1721156858700,1.5038847,3471.2,3471.0,0.576228]
[1721156859033,1.5038847,3471.2,3470.9,2.88109]
[1721156859406,1.5038847,3471.3,3470.9,2.88109]
[1721156860021,1.5038847,3471.2,3470.9,2.88109]
[1721156860415,7.68519165,3471.6,3470.9,2.88109]
[1721156860416,1.5038847,3471.3,3470.9,2.88109]
[1721156860616,1.5038847,3471.3,3471.0,2.881]
[1721156861043,3.0,3471.6,3471.0,2.881]
[1721156861225,1.50394657,3471.3,3471.0,2.881]
[1721156861420,1.50394657,3471.2,3471.0,2.881]
[1721156862847,7.68526588,3471.6,3471.0,2.881]
[1721156862848,1.50394657,3471.3,3471.1,2.88093]
[1721156863250,4.80473588,3471.6,3471.1,2.88093]
[1721156863251,1.50394657,3471.4,3471.1,2.88093]
[1721156863948,1.50394657,3471.3,3471.1,2.88093]
[1721156864452,1.50408336,3471.3,3471.1,2.88093]
[1721156865441,1.50404031,3471.3,3471.1,2.88093]
[1721156867666,1.50394351,3471.3,3471.1,2.88093]
[1721156868353,3.0,3471.7,3471.2,2.88084]
[1721156868354,1.50394351,3471.4,3471.2,2.88084]
[1721156868553,0.1507847,3471.9,3470.5,2.88138]
[1721156868554,0.1507847,3471.9,3471.7,2.88043]
[1721156868731,0.1507847,3471.9,3471.8,13.60154951]
[1721156869073,0.1507847,3471.9,3471.8,13.54395]
[1721156869233,0.1507847,3471.9,3471.8,12.609949]
[1721156869442,0.1507847,3471.9,3471.8,10.161949]
[1721156870162,0.1507847,3471.9,3471.8,13.042299]
[1721156871068,0.1507847,3471.9,3471.8,13.592299]
[1721156871836,0.1507847,3471.9,3471.8,10.161949]
[1721156872073,0.1507847,3471.9,3471.8,8.2156]
[1721156872641,0.1507847,3471.9,3471.8,2.88035]
[1721156874294,0.1507847,3471.9,3471.8,5.7607]
[1721156875954,0.1507847,3471.9,3471.8,2.88035]
[1721156877955,0.1507847,3471.9,3471.7,2.88042]
[1721156878573,0.1507847,3471.9,3471.8,2.88035]
[1721156880579,0.1507847,3471.9,3471.2,2.88081]
[1721156880783,0.1507847,3471.9,3471.4,2.88063]
[1721156880982,0.1507847,3471.9,3471.2,2.88079]
[1721156881498,0.1507847,3471.9,3471.5,2.88059]
[1721156882046,0.1507847,3471.9,3470.9,2.3159]
[1721156882271,0.1507847,3471.9,3469.7,5.33001]
[1721156882272,0.1507847,3471.9,3471.1,2.88092]
[1721156882474,0.3158748,3471.9,3471.1,2.88092]
[1721156883377,2.88045,3471.7,3471.1,2.88092]
[1721156884780,0.3158748,3471.9,3471.2,2.88083]
[1721156884981,0.1507847,3471.9,3471.2,2.88083]
[1721156885273,0.1507847,3471.9,3471.6,2.88049]
[1721156885918,0.1507847,3471.9,3470.7,3.039]
[1721156885919,0.1507847,3471.9,3470.7,2.3064]
[1721156886070,0.1507847,3471.9,3471.3,2.88075]
[1721156887275,0.1507847,3471.9,3471.5,2.88054]
[1721156887698,0.1507847,3471.9,3471.5,5.76107]
[1721156888332,0.1507847,3471.9,3471.5,2.88053]
[1721156888675,0.1507847,3471.9,3470.9,2.88106]
[1721156889167,0.1507847,3471.9,3471.7,2.8804]
[1721156891033,0.1507847,3471.9,3471.8,2.88035]
[1721156891818,0.1507847,3471.9,3471.8,5.7607]
[1721156892419,0.1507847,3471.9,3471.8,17.01745]
[1721156893211,0.1507847,3471.9,3471.8,13.42845]
[1721156894217,0.1507847,3471.9,3471.8,16.46745]
[1721156894382,0.1507847,3471.9,3471.8,21.6252181]
[1721156895505,0.1507847,3471.9,3471.8,18.7448681]
[1721156896010,0.1507847,3471.9,3471.8,15.7058681]
[1721156899282,0.1507847,3471.9,3471.8,21.6252181]
[1721156907103,0.1507847,3471.9,3471.8,27.3858181]
[1721156907614,1.50247166,3473.6,3473.3,2.87908]
[1721156907952,2.3345,3473.8,3473.3,2.87908]
[1721156907953,3.83697166,3473.8,3473.3,2.87908]
[1721156908304,3.83697166,3473.8,3473.4,2.879]
[1721156908630,4.98169033,3474.4,3473.6,2.87885]
[1721156908631,2.4492,3474.2,3473.6,2.87885]
[1721156908836,1.50289374,3473.9,3473.6,2.87885]
[1721156909407,1.50289374,3474.0,3473.6,2.87885]
[1721156909885,1.50289374,3473.9,3473.6,2.87885]
[1721156910048,1.50289374,3474.0,3473.6,2.87885]
[1721156910346,1.50289374,3474.0,3473.5,5.7579]
[1721156910517,1.95228648,3474.0,3473.5,5.7579]
[1721156910718,1.50289374,3473.8,3473.5,5.7579]
[1721156911020,1.50289374,3473.7,3473.5,5.7579]
[1721156911233,2.87869,3473.8,3473.5,5.7579]
[1721156911234,4.38158374,3473.8,3473.5,5.7579]
[1721156911404,1.50289374,3473.7,3473.5,5.7579]
[1721156911809,1.50294864,3473.7,3473.5,5.7579]
[1721156912041,1.5029159,3473.7,3473.5,5.7579]
[1721156912428,4.3816059,3473.8,3473.5,5.7579]
[1721156912629,1.5029159,3473.7,3473.5,5.7579]
[1721156913253,4.3816059,3473.8,3473.5,5.7579]
[1721156913551,1.5029159,3473.8,3473.5,5.7579]
[1721156913916,1.5029159,3473.9,3473.5,5.7579]
[1721156915034,2.87858,3474.0,3473.5,5.7579]
[1721156915246,1.50354319,3473.9,3473.5,5.7579]
[1721156918247,1.50354319,3473.8,3473.5,5.7579]
[1721156920247,1.50354319,3473.9,3473.5,5.7579]
[1721156920483,1.50354319,3473.8,3473.5,5.7579]
[1721156920713,2.263,3473.7,3473.5,5.7579]
[1721156920986,2.263,3473.7,3472.1,2.88005]
[1721156920987,5.14245,3472.9,3472.1,2.88005]
[1721156921202,5.32769,3472.6,3471.8,2.88031]
[1721156921492,5.32769,3472.6,3471.9,2.88024]
[1721156921656,1.50185949,3472.7,3471.9,2.88024]
[1721156921859,3.393765,3472.8,3471.9,2.88024]
[1721156921860,4.89562449,3472.8,3471.9,2.88024]
[1721156922048,3.63534574,3472.7,3471.9,2.88024]
[1721156922367,2.87985,3472.4,3471.2,2.4099]
[1721156922576,6.82959949,3472.6,3471.8,2.88034]
[1721156922889,5.13726523,3472.7,3471.8,2.88034]
[1721156923067,2.25758523,3472.7,3471.9,2.88026]
[1721156923260,0.75572574,3472.7,3471.9,5.29016]
[1721156923462,1.50185949,3472.8,3471.9,6.107218]
[1721156923696,6.64436949,3472.9,3471.9,6.107218]
[1721156923873,9.64436949,3472.9,3471.9,6.107218]
[1721156924055,2.8796,3472.8,3472.1,2.88008]
[1721156924760,4.50236744,3472.9,3472.2,2.88001]
[1721156925482,3.0,3472.9,3472.2,2.88001]
[1721156925855,7.38180744,3472.9,3472.2,2.88001]
[1721156926410,4.50236744,3472.9,3472.2,2.88001]
[1721156927202,4.50236744,3472.9,3472.3,2.87987]
[1721156927203,3.0,3472.9,3472.3,2.87987]
[1721156927803,5.13651,3473.3,3472.6,2.87967]
[1721156927804,4.38149744,3473.3,3472.6,2.87967]
[1721156928104,3.0,3473.2,3472.6,2.87967]
[1721156928416,4.38138744,3473.4,3472.7,2.87958]
[1721156929283,1.50236744,3473.3,3472.7,2.87958]
[1721156929685,1.50236744,3473.3,3472.6,0.575951]
[1721156929686,4.38146744,3473.3,3472.6,0.575951]
[1721156929879,1.50236744,3473.2,3472.5,2.8797]
[1721156930700,1.50396733,3473.2,3472.6,2.87967]
[1721156930908,1.50396733,3473.1,3472.6,2.87967]
[1721156931308,1.50396733,3473.1,3472.5,2.8797]
[1721156931508,1.50396733,3473.0,3472.5,2.8797]
[1721156932110,1.50396733,3473.2,3472.6,2.87968]
[1721156933112,1.50396733,3473.1,3472.7,2.87959]
[1721156933919,5.32702,3473.4,3472.7,2.87959]
[1721156934087,1.5053335,3473.2,3472.7,2.87959]
[1721156934288,2.3342,3473.7,3472.8,2.87947]
[1721156934289,1.5053335,3473.3,3472.8,2.87947]
[1721156934489,1.5053335,3473.3,3472.5,0.575962]
[1721156934490,1.5053335,3473.3,3473.2,5.75836]
[1721156934700,1.5053335,3473.8,3473.0,8.25721]
[1721156934887,1.5053335,3473.9,3473.5,2.87886]
[1721156935306,1.5053335,3473.9,3473.5,2.87888]
[1721156935618,1.5053335,3473.8,3473.3,2.87908]
[1721156935831,1.5053335,3473.7,3473.3,2.87908]
[1721156936388,1.5053335,3473.7,3473.3,3.31117427]
[1721156936609,1.5053335,3473.8,3473.3,3.31117427]
[1721156936920,2.87858,3474.0,3473.3,2.87908]
[1721156936921,1.5053335,3473.7,3473.3,2.87908]
[1721156937781,1.5053335,3473.8,3473.6,2.87885]
[1721156940234,1.50586568,3473.9,3473.4,2.87899]
[1721156940433,4.68531882,3474.3,3473.6,2.87883]
[1721156940434,1.50586568,3473.8,3473.6,2.87883]
[1721156940726,5.87828,3474.3,3473.6,2.87883]
[1721156940727,1.50586568,3473.9,3473.6,3.454572]
[1721156940933,1.50586568,3473.9,3473.6,2.87879]
[1721156942114,1.50586568,3474.0,3473.6,2.87879]
[1721156942307,1.50586568,3474.1,3473.6,2.87879]
[1721156942505,1.50586568,3474.0,3473.6,5.75757]
[1721156942706,1.50586568,3474.1,3473.6,5.75757]
[1721156943061,1.50586568,3474.0,3473.6,2.87878]
[1721156943231,4.98616196,3474.7,3473.8,2.87863]
[1721156943539,5.25093,3474.9,3474.1,2.87844]
[1721156943540,1.50525458,3474.5,3474.1,2.87844]
[1721156943738,1.50525458,3474.4,3474.1,2.87844]
[1721156944355,1.50525458,3474.6,3474.2,2.87833]
[1721156945936,1.50525458,3474.6,3473.6,0.575776]
[1721156945937,2.448,3474.3,3473.6,0.575776]
[1721156946112,3.95325458,3474.3,3473.6,2.8788]
[1721156946317,3.95325458,3474.3,3473.5,2.87892]
[1721156946318,2.448,3473.8,3473.5,2.87892]
[1721156946640,2.448,3473.8,3473.7,2.87877]
[1721156947027,2.448,3473.8,3473.4,2.87899]
[1721156947028,2.448,3473.8,3473.5,2.87888]
[1721156947410,1.50471976,3474.1,3473.5,2.87886]
[1721156947847,1.50471976,3474.1,3473.3,5.28419]
[1721156948034,1.50471976,3474.1,3473.5,2.87887]
[1721156948469,2.36838611,3474.1,3473.3,5.28419]
[1721156948670,2.36838611,3474.1,3473.4,2.87899]
[1721156948965,1.50471976,3474.1,3473.6,2.87885]
[1721156949472,1.50471976,3474.1,3473.3,5.28419]
[1721156949473,5.32641,3474.2,3473.3,2.87909]
[1721156949677,5.32641,3474.2,3473.4,2.87901]
[1721156949678,2.448,3473.8,3473.4,2.87901]
[1721156952283,5.87786,3474.9,3473.7,2.87877]
[1721156952284,3.95234787,3474.2,3473.7,2.87877]
[1721156952652,3.95234787,3474.2,3473.9,2.87857]
[1721156952867,2.4658,3474.5,3473.9,2.87857]
[1721156952868,1.50423363,3474.3,3473.9,2.87857]
[1721156953381,1.50423363,3474.3,3474.0,2.87852]
[1721156953536,2.448,3474.2,3473.2,2.87916]
[1721156953736,2.448,3473.7,3473.1,2.87921]
[1721156953986,3.95223363,3473.7,3473.1,2.87921]
[1721156954141,2.448,3473.3,3472.9,2.87943]
[1721156954339,2.448,3473.3,3472.7,2.87953]
[1721156954584,6.41803363,3473.3,3472.7,2.87953]
[1721156954880,3.95223363,3473.3,3472.8,2.87947]
[1721156955096,3.95223363,3473.3,3472.5,3.455692]
[1721156955279,3.95223363,3473.3,3472.7,2.87953]
[1721156955589,2.448,3473.3,3472.7,2.87953]
[1721156955957,2.448,3473.3,3472.8,2.87948]
[1721156956552,2.448,3473.3,3472.9,2.87941]
[1721156958352,2.448,3473.3,3473.0,2.87933]
[1721156958594,1.50369917,3473.5,3473.0,0.575874]
[1721156958754,3.95169917,3473.7,3473.0,0.575874]
[1721156958955,3.95169917,3473.7,3473.3,2.87902]
[1721156958956,2.448,3473.7,3473.3,2.87902]
[1721156959198,3.95150809,3473.7,3473.3,2.87902]
[1721156959381,3.95150809,3473.7,3473.1,2.87923]
[1721156959382,1.50350809,3473.6,3473.1,2.87923]
[1721156960861,2.36694287,3473.6,3473.1,2.87923]
[1721156961056,2.36694287,3473.6,3472.9,2.87943]
[1721156961057,2.448,3473.2,3472.9,2.87943]
[1721156962962,2.448,3473.2,3473.0,2.87935]
[1721156965600,2.448,3473.2,3472.8,2.87947]
[1721156965800,2.448,3472.9,3472.6,2.87966]
[1721156966778,2.448,3472.9,3472.6,2.87962]
[1721156967314,2.448,3472.9,3472.3,2.8799]
[1721156967813,2.448,3472.9,3472.3,0.300573]
[1721156968705,2.448,3472.5,3471.7,2.88041]
[1721156968905,2.448,3472.5,3471.6,2.2878]
[1721156969125,2.448,3472.5,3471.4,2.88062]
[1721156969126,2.448,3472.1,3471.4,2.88062]
[1721156969500,2.448,3472.1,3471.3,2.2878]
[1721156969873,2.448,3472.1,3471.4,2.88068]
[1721156969874,3.95189796,3472.1,3471.4,2.88068]
[1721156970220,2.448,3472.1,3471.4,2.88068]
[1721156970407,2.448,3472.1,3471.3,3.092748]
[1721156970607,2.448,3472.1,3471.3,5.973488]
[1721156970912,2.448,3472.1,3471.3,3.092748]
[1721156971110,2.448,3472.1,3471.0,2.88099]
[1721156971276,2.448,3471.7,3471.0,2.88099]
[1721156971787,2.448,3471.7,3470.8,2.88116]
[1721156971991,2.338,3472.0,3470.6,2.88134]
[1721156971992,2.448,3471.3,3470.6,2.88134]
[1721156972586,2.448,3471.3,3470.4,2.88149]
[1721156972790,2.448,3471.3,3470.5,0.288149]
[1721156973590,2.448,3471.3,3470.5,3.169559]
[1721156974474,2.448,3471.3,3470.5,0.288149]
[1721156975911,2.448,3471.3,3470.4,0.30061339]
[1721156976076,2.448,3470.9,3470.4,0.30061339]
[1721156976275,2.448,3470.9,3470.1,2.2878]
[1721156976276,2.448,3470.9,3470.2,2.88167]
[1721156976500,2.88052,3471.6,3470.2,2.88167]
[1721156976501,2.448,3471.3,3470.2,2.88167]
[1721156976816,2.448,3471.3,3470.4,0.30046558]
[1721156977001,2.448,3471.3,3470.4,3.72890914]
[1721156977479,2.448,3471.3,3470.5,2.88142]
[1721156980040,2.448,3471.3,3470.4,0.84745914]
[1721156980201,2.448,3471.3,3470.4,0.30046558]
[1721156980406,2.448,3470.9,3470.4,0.30046558]